[Event "Early-Titled-Tuesday-Blitz-February-06-2024"]
[Site "Chess.com"]
[Date "2024.02.06"]
[Round "5"]
[White "alexrustemov"]
[Black "zverr1"]
[Result "1/2-1/2"]
[WhiteElo "2755"]
[BlackElo "2571"]
[TimeControl "180+1"]
[EndTime "8:59:22 PST"]
[Termination "Game drawn by agreement"]

1. d4 {[%clk 0:03:00.9]} 1... Nf6 {[%clk 0:02:55.2]} 2. c4 {[%clk 0:03:01.3]}
2... g6 {[%clk 0:02:55.2]} 3. Nf3 {[%clk 0:03:01.6]} 3... Bg7 {[%clk 0:02:54.3]}
4. g3 {[%clk 0:03:02.1]} 4... O-O {[%clk 0:02:54.3]} 5. Bg2 {[%clk 0:03:02.5]}
5... c6 {[%clk 0:02:55]} 6. O-O {[%clk 0:03:01.4]} 6... d5 {[%clk 0:02:55.7]} 7.
Nbd2 {[%clk 0:02:59.5]} 7... Bf5 {[%clk 0:02:49.9]} 8. Nb3 {[%clk 0:02:58.8]}
8... Nbd7 {[%clk 0:02:32.5]} 9. cxd5 {[%clk 0:02:55.1]} 9... cxd5 {[%clk
0:02:33.4]} 10. Bf4 {[%clk 0:02:52.4]} 10... Be4 {[%clk 0:02:24.3]} 11. Qd2
{[%clk 0:02:50.3]} 11... Qb6 {[%clk 0:02:17.7]} 12. Rfc1 {[%clk 0:02:46.2]}
12... Rfc8 {[%clk 0:02:17.1]} 13. Qa5 {[%clk 0:02:41.2]} 13... e6 {[%clk
0:01:44.5]} 14. Qxb6 {[%clk 0:02:35.5]} 14... axb6 {[%clk 0:01:45.4]} 15. a3
{[%clk 0:02:33.7]} 15... Rc6 {[%clk 0:01:33]} 16. Rxc6 {[%clk 0:02:07.8]} 16...
bxc6 {[%clk 0:01:33.9]} 17. Rc1 {[%clk 0:02:07.5]} 17... Rc8 {[%clk 0:01:34.5]}
18. Nbd2 {[%clk 0:02:01]} 18... c5 {[%clk 0:01:25]} 19. dxc5 {[%clk 0:01:56.2]}
19... bxc5 {[%clk 0:01:23.8]} 20. Nxe4 {[%clk 0:01:55.7]} 20... Nxe4 {[%clk
0:01:23.4]} 21. Rc2 {[%clk 0:01:46.1]} 21... c4 {[%clk 0:01:08.3]} 22. Nd2
{[%clk 0:01:39.6]} 22... f5 {[%clk 0:00:55.2]} 23. f3 {[%clk 0:01:10.2]} 23...
Nxd2 {[%clk 0:00:47.9]} 24. Bxd2 {[%clk 0:01:11.1]} 24... Rb8 {[%clk 0:00:46]}
25. Bc1 {[%clk 0:01:11]} 25... Nc5 {[%clk 0:00:40.9]} 26. e4 {[%clk 0:01:07.2]}
26... fxe4 {[%clk 0:00:41.8]} 27. fxe4 {[%clk 0:01:07.3]} 27... Nxe4 {[%clk
0:00:35]} 28. Bxe4 {[%clk 0:01:05.7]} 28... dxe4 {[%clk 0:00:35.3]} 29. Rxc4
{[%clk 0:01:02.1]} 29... Bxb2 {[%clk 0:00:35.2]} 30. Bxb2 {[%clk 0:00:57.3]}
30... Rxb2 {[%clk 0:00:36.1]} 31. Rxe4 {[%clk 0:00:56.9]} 31... Ra2 {[%clk
0:00:35.9]} 32. Ra4 {[%clk 0:00:52.8]} 32... Kf7 {[%clk 0:00:32.1]} 33. Ra8
{[%clk 0:00:46.9]} 33... h5 {[%clk 0:00:30.8]} 34. a4 {[%clk 0:00:47.1]} 34...
e5 {[%clk 0:00:28.4]} 35. a5 {[%clk 0:00:47.4]} 35... e4 {[%clk 0:00:28.8]} 36.
h3 {[%clk 0:00:42]} 36... e3 {[%clk 0:00:28.1]} 37. Kf1 {[%clk 0:00:42.3]} 37...
Kf6 {[%clk 0:00:23.2]} 38. a6 {[%clk 0:00:42]} 38... Kg7 {[%clk 0:00:21.4]} 39.
Ke1 {[%clk 0:00:40.7]} 39... Kh7 {[%clk 0:00:20.7]} 40. Ra7+ {[%clk 0:00:37.5]}
40... Kg8 {[%clk 0:00:19.5]} 41. Kd1 {[%clk 0:00:35.4]} 41... Kf8 {[%clk
0:00:19.2]} 42. Ke1 {[%clk 0:00:29]} 42... e2 {[%clk 0:00:19.3]} 43. Kf2 {[%clk
0:00:27.8]} 43... Kg8 {[%clk 0:00:19.1]} 44. Re7 {[%clk 0:00:22]} 44... e1=Q+
{[%clk 0:00:17.1]} 45. Kxe1 {[%clk 0:00:20.6]} 45... Rxa6 {[%clk 0:00:18]} 46.
Kf2 {[%clk 0:00:20.9]} 46... Ra3 {[%clk 0:00:14.2]} 47. Re3 {[%clk 0:00:19.2]}
47... Ra6 {[%clk 0:00:12.3]} 48. Kf3 {[%clk 0:00:19.1]} 48... Kf7 {[%clk
0:00:12.1]} 49. Kf4 {[%clk 0:00:19.2]} 49... Kf6 {[%clk 0:00:11.5]} 50. Rb3
{[%clk 0:00:18.5]} 50... Ra4+ {[%clk 0:00:09]} 51. Kf3 {[%clk 0:00:18.8]} 51...
Ra6 {[%clk 0:00:09.7]} 52. Rb4 {[%clk 0:00:17.1]} 52... Rc6 {[%clk 0:00:09.4]}
53. Kf4 {[%clk 0:00:16.8]} 53... Re6 {[%clk 0:00:08.2]} 54. Rb5 {[%clk
0:00:16.2]} 54... Rc6 {[%clk 0:00:06.9]} 55. Rd5 {[%clk 0:00:15.4]} 55... Rc4+
{[%clk 0:00:06.8]} 56. Kf3 {[%clk 0:00:15.8]} 56... Rc6 {[%clk 0:00:07.6]} 57.
h4 {[%clk 0:00:15.2]} 57... Rc3+ {[%clk 0:00:07.5]} 58. Kf4 {[%clk 0:00:14.6]}
58... Rc4+ {[%clk 0:00:08]} 59. Ke3 {[%clk 0:00:14.8]} 59... Rc3+ {[%clk
0:00:08]} 60. Kf2 {[%clk 0:00:14.5]} 60... Rc2+ {[%clk 0:00:08]} 61. Kf3 {[%clk
0:00:15.1]} 61... Rc3+ {[%clk 0:00:08.6]} 62. Kg2 {[%clk 0:00:15.4]} 62... Rc2+
{[%clk 0:00:09]} 63. Kh3 {[%clk 0:00:15.9]} 63... Ke6 {[%clk 0:00:08.6]} 64. Ra5
{[%clk 0:00:15.3]} 64... Kf6 {[%clk 0:00:08.8]} 65. Ra6+ {[%clk 0:00:15.6]}
65... Kf5 {[%clk 0:00:09.3]} 66. Ra5+ {[%clk 0:00:14.3]} 66... Kf6 {[%clk
0:00:09.9]} 67. Ra4 {[%clk 0:00:14]} 67... Rd2 {[%clk 0:00:09.7]} 68. Rf4+
{[%clk 0:00:13.5]} 68... Ke6 {[%clk 0:00:08.1]} 69. g4 {[%clk 0:00:13.4]} 69...
Rd3+ {[%clk 0:00:07.9]} 70. Kg2 {[%clk 0:00:13.6]} 70... hxg4 {[%clk 0:00:07.9]}
71. Rxg4 {[%clk 0:00:13.9]} 71... Kf5 {[%clk 0:00:08.3]} 72. Rg5+ {[%clk
0:00:13.7]} 72... Kf6 {[%clk 0:00:08.2]} 73. Ra5 {[%clk 0:00:13.7]} 73... Rd4
{[%clk 0:00:07.5]} 74. Kg3 {[%clk 0:00:13.6]} 74... Rd3+ {[%clk 0:00:07.7]} 75.
Kf2 {[%clk 0:00:14]} 75... Rd4 {[%clk 0:00:08.6]} 76. Ra6+ {[%clk 0:00:13.8]}
76... Kf5 {[%clk 0:00:08.7]} 77. Ra5+ {[%clk 0:00:13.5]} 77... Kf6 {[%clk
0:00:05.6]} 78. Kg3 {[%clk 0:00:13.3]} 78... Rd3+ {[%clk 0:00:05.6]} 79. Kg4
{[%clk 0:00:13.7]} 79... Rd4+ {[%clk 0:00:06.1]} 80. Kh3 {[%clk 0:00:14.2]}
80... Rd3+ {[%clk 0:00:06.7]} 81. Kg2 {[%clk 0:00:14.9]} 81... Rd4 {[%clk
0:00:07.3]} 82. Ra6+ {[%clk 0:00:14.3]} 82... Kf5 {[%clk 0:00:07.5]} 83. Kg3
{[%clk 0:00:14.6]} 83... Rd3+ {[%clk 0:00:07.6]} 84. Kg2 {[%clk 0:00:15.1]}
84... Rd5 {[%clk 0:00:05.1]} 85. Ra4 {[%clk 0:00:14.3]} 85... Rb5 {[%clk
0:00:05.3]} 86. Ra3 {[%clk 0:00:13]} 86... Kg4 {[%clk 0:00:03.8]} 87. Ra4+
{[%clk 0:00:12.7]} 87... Kh5 {[%clk 0:00:04.2]} 88. Kg3 {[%clk 0:00:11.9]} 88...
Rb3+ {[%clk 0:00:04.5]} 89. Kg2 {[%clk 0:00:12.1]} 89... Re3 {[%clk 0:00:05]}
90. Rb4 {[%clk 0:00:11.6]} 90... Rd3 {[%clk 0:00:05.3]} 91. Kh2 {[%clk
0:00:11.5]} 91... Rc3 {[%clk 0:00:05.4]} 92. Ra4 {[%clk 0:00:11.7]} 92... Rb3
{[%clk 0:00:05.8]} 93. Rc4 {[%clk 0:00:11.5]} 93... Ra3 {[%clk 0:00:06.3]} 94.
Rd4 {[%clk 0:00:11.6]} 94... Ra2+ {[%clk 0:00:06.9]} 95. Kg3 {[%clk 0:00:11.1]}
95... Ra3+ {[%clk 0:00:07.8]} 96. Kg2 {[%clk 0:00:11.4]} 96... Ra2+ {[%clk
0:00:08.3]} 97. Kh3 {[%clk 0:00:11.9]} 97... Ra1 {[%clk 0:00:08.6]} 98. Rd5+
{[%clk 0:00:11.6]} 98... Kh6 {[%clk 0:00:09.2]} 99. Re5 {[%clk 0:00:11.8]} 99...
Rg1 {[%clk 0:00:08.6]} 100. Re4 {[%clk 0:00:11.4]} 100... Ra1 {[%clk 0:00:08]}
101. Kg4 {[%clk 0:00:11.4]} 101... Rg1+ {[%clk 0:00:06.9]} 102. Kf3 {[%clk
0:00:11.2]} 102... Kh5 {[%clk 0:00:07.2]} 103. Kf2 {[%clk 0:00:10.3]} 103... Rg4
{[%clk 0:00:06.8]} 104. Re8 {[%clk 0:00:08.5]} 104... Rxh4 {[%clk 0:00:05.2]}
105. Rh8+ {[%clk 0:00:08.6]} 105... Kg4 {[%clk 0:00:04.9]} 106. Ra8 {[%clk
0:00:09.1]} 106... Rh2+ {[%clk 0:00:04.8]} 107. Kg1 {[%clk 0:00:09.6]} 107...
Rb2 {[%clk 0:00:05.2]} 108. Ra3 {[%clk 0:00:09.8]} 108... g5 {[%clk 0:00:05.4]}
109. Kf1 {[%clk 0:00:10.2]} 109... Kf4 {[%clk 0:00:03.9]} 110. Kg1 {[%clk
0:00:10.6]} 110... g4 {[%clk 0:00:03.9]} 111. Kf1 {[%clk 0:00:11]} 111... Kg5
{[%clk 0:00:04.5]} 112. Kg1 {[%clk 0:00:10.8]} 112... Kh4 {[%clk 0:00:05.3]}
113. Rc3 {[%clk 0:00:10.4]} 113... Rd2 {[%clk 0:00:05.4]} 114. Rb3 {[%clk
0:00:10.4]} 114... Rd1+ {[%clk 0:00:05.9]} 115. Kg2 {[%clk 0:00:10.4]} 115...
Rd2+ {[%clk 0:00:06.8]} 116. Kg1 {[%clk 0:00:10.9]} 116... Rd5 {[%clk
0:00:07.2]} 117. Kg2 {[%clk 0:00:11.2]} 117... Rf5 {[%clk 0:00:07.8]} 118. Kg1
{[%clk 0:00:11.4]} 118... Rc5 {[%clk 0:00:07.5]} 119. Kg2 {[%clk 0:00:11.7]}
119... Ra5 {[%clk 0:00:08.1]} 120. Kg1 {[%clk 0:00:11.8]} 120... Ra4 {[%clk
0:00:08.8]} 121. Kg2 {[%clk 0:00:12.2]} 121... Kg5 {[%clk 0:00:09.6]} 122. Kg1
{[%clk 0:00:12.4]} 122... Kf4 {[%clk 0:00:10.4]} 123. Kg2 {[%clk 0:00:12.2]}
123... Ra2+ {[%clk 0:00:11]} 124. Kg1 {[%clk 0:00:12.7]} 124... Re2 {[%clk
0:00:11.6]} 125. Kf1 {[%clk 0:00:12.4]} 125... Rh2 {[%clk 0:00:11.4]} 126. Kg1
{[%clk 0:00:12.6]} 126... Rc2 {[%clk 0:00:09.5]} 127. Kf1 {[%clk 0:00:12.7]}
127... Rc1+ {[%clk 0:00:09.6]} 128. Kg2 {[%clk 0:00:12.9]} 128... Rd1 {[%clk
0:00:06.9]} 129. Rb4+ {[%clk 0:00:12.5]} 129... Kg5 {[%clk 0:00:07.3]} 130. Rb5+
{[%clk 0:00:11.9]} 130... Kh4 {[%clk 0:00:07.7]} 131. Rb3 {[%clk 0:00:11.9]}
131... g3 {[%clk 0:00:06.3]} 132. Rb4+ {[%clk 0:00:10.4]} 132... Kg5 {[%clk
0:00:06.7]} 133. Kxg3 {[%clk 0:00:10.6]} 133... Kf6 {[%clk 0:00:07.1]} 134. Kf4
{[%clk 0:00:09.3]} 1/2-1/2

[Event "Early-Titled-Tuesday-Blitz-February-06-2024"]
[Site "Chess.com"]
[Date "2024.02.06"]
[Round "6"]
[White "doctorcristian"]
[Black "SmirnovTimofey2000"]
[Result "1-0"]
[WhiteElo "2597"]
[BlackElo "1980"]
[TimeControl "180+1"]
[EndTime "9:01:49 PST"]
[Termination "doctorcristian won by checkmate"]

1. d4 {[%clk 0:02:49.6]} 1... d5 {[%clk 0:02:59.5]} 2. Bf4 {[%clk 0:02:48]} 2...
Bf5 {[%clk 0:02:59.1]} 3. e3 {[%clk 0:02:47.7]} 3... e6 {[%clk 0:02:59.4]} 4.
Nf3 {[%clk 0:02:47]} 4... Nf6 {[%clk 0:02:59.8]} 5. Ne5 {[%clk 0:02:45.4]} 5...
h6 {[%clk 0:02:56.6]} 6. g4 {[%clk 0:02:43.6]} 6... Bxg4 {[%clk 0:02:49.3]} 7.
Nxg4 {[%clk 0:02:42.4]} 7... Nxg4 {[%clk 0:02:49.8]} 8. Qxg4 {[%clk 0:02:42]}
8... g5 {[%clk 0:02:41]} 9. Be5 {[%clk 0:02:40.6]} 9... f6 {[%clk 0:02:40]} 10.
Qh5+ {[%clk 0:02:40.2]} 10... Ke7 {[%clk 0:02:38.6]} 11. Bg3 {[%clk 0:02:38.8]}
11... Nd7 {[%clk 0:02:37.5]} 12. Nc3 {[%clk 0:02:38.1]} 12... c5 {[%clk
0:02:35.7]} 13. Nb5 {[%clk 0:02:34.7]} 13... a6 {[%clk 0:02:34.6]} 14. Bd6#
{[%clk 0:02:32.9]} 1-0

[Event "Early-Titled-Tuesday-Blitz-February-06-2024"]
[Site "Chess.com"]
[Date "2024.02.06"]
[Round "6"]
[White "rubicapa"]
[Black "rikchessmx"]
[Result "0-1"]
[WhiteElo "2435"]
[BlackElo "2324"]
[TimeControl "180+1"]
[EndTime "9:03:13 PST"]
[Termination "rikchessmx won by resignation"]

1. e4 {[%clk 0:03:00.9]} 1... e5 {[%clk 0:02:59.2]} 2. Nf3 {[%clk 0:03:00.3]}
2... Nc6 {[%clk 0:03:00.1]} 3. Bb5 {[%clk 0:02:59.4]} 3... a6 {[%clk 0:02:58.5]}
4. Ba4 {[%clk 0:02:58.9]} 4... Bc5 {[%clk 0:02:57.8]} 5. d3 {[%clk 0:02:58.1]}
5... b5 {[%clk 0:02:56.6]} 6. Bb3 {[%clk 0:02:57.5]} 6... Qf6 {[%clk 0:02:55.9]}
7. O-O {[%clk 0:02:56.6]} 7... h6 {[%clk 0:02:55.4]} 8. c3 {[%clk 0:02:47.3]}
8... Nge7 {[%clk 0:02:53.9]} 9. a4 {[%clk 0:02:47]} 9... Rb8 {[%clk 0:02:53.2]}
10. Na3 {[%clk 0:02:37.7]} 10... O-O {[%clk 0:02:46.1]} 11. Nc2 {[%clk 0:02:37]}
11... d6 {[%clk 0:02:45.9]} 12. d4 {[%clk 0:02:37.1]} 12... Bb6 {[%clk
0:02:42.5]} 13. h3 {[%clk 0:02:30.9]} 13... Ng6 {[%clk 0:02:41.3]} 14. Be3
{[%clk 0:02:29]} 14... Nf4 {[%clk 0:02:39.9]} 15. axb5 {[%clk 0:02:25]} 15...
axb5 {[%clk 0:02:39.4]} 16. dxe5 {[%clk 0:02:22.5]} 16... Nxe5 {[%clk
0:02:28.2]} 17. Bxb6 {[%clk 0:02:06.9]} 17... Rxb6 {[%clk 0:02:24.7]} 18. Ncd4
{[%clk 0:02:04.1]} 18... Bxh3 {[%clk 0:02:15]} 19. Nxe5 {[%clk 0:01:58.7]} 19...
dxe5 {[%clk 0:02:11.4]} 20. Nf5 {[%clk 0:01:56.6]} 20... Bxg2 {[%clk 0:02:03.6]}
0-1

[Event "Early-Titled-Tuesday-Blitz-February-06-2024"]
[Site "Chess.com"]
[Date "2024.02.06"]
[Round "6"]
[White "VitaliyBernadskiy"]
[Black "dropstoneDP"]
[Result "1/2-1/2"]
[WhiteElo "2914"]
[BlackElo "3019"]
[TimeControl "180+1"]
[EndTime "9:03:44 PST"]
[Termination "Game drawn by agreement"]

1. d4 {[%clk 0:03:00.9]} 1... d5 {[%clk 0:03:00.1]} 2. c4 {[%clk 0:03:01.3]}
2... dxc4 {[%clk 0:03:01]} 3. e3 {[%clk 0:03:01.8]} 3... Nf6 {[%clk 0:03:01.3]}
4. Bxc4 {[%clk 0:03:01.7]} 4... e6 {[%clk 0:03:02]} 5. Nf3 {[%clk 0:03:01.7]}
5... c5 {[%clk 0:03:02.7]} 6. O-O {[%clk 0:03:01.7]} 6... Nc6 {[%clk 0:03:03.4]}
7. Nc3 {[%clk 0:02:59.3]} 7... a6 {[%clk 0:03:03.2]} 8. dxc5 {[%clk 0:02:59.6]}
8... Qxd1 {[%clk 0:03:02]} 9. Rxd1 {[%clk 0:03:00.5]} 9... Bxc5 {[%clk
0:03:02.1]} 10. Be2 {[%clk 0:02:55.2]} 10... O-O {[%clk 0:03:00.7]} 11. a3
{[%clk 0:02:47.9]} 11... b5 {[%clk 0:02:59.5]} 12. b4 {[%clk 0:02:47.7]} 12...
Be7 {[%clk 0:02:59.7]} 13. Bb2 {[%clk 0:02:47.7]} 13... Bb7 {[%clk 0:02:59.3]}
14. Nd2 {[%clk 0:02:44.8]} 14... Rfb8 {[%clk 0:02:44.2]} 15. Nb3 {[%clk
0:02:40.9]} 15... a5 {[%clk 0:02:43.3]} 16. Nxa5 {[%clk 0:02:32.3]} 16... Nxa5
{[%clk 0:02:43.5]} 17. bxa5 {[%clk 0:02:33.2]} 17... Bc6 {[%clk 0:02:39.2]} 18.
Na2 {[%clk 0:02:16]} 18... Rxa5 {[%clk 0:02:36.6]} 19. Nb4 {[%clk 0:02:16.3]}
19... Bd5 {[%clk 0:02:20.1]} 20. Bxf6 {[%clk 0:01:43]} 20... Bxf6 {[%clk
0:02:20.1]} 21. Nxd5 {[%clk 0:01:43.4]} 21... exd5 {[%clk 0:02:16.4]} 22. Rab1
{[%clk 0:01:39.7]} 22... Rxa3 {[%clk 0:02:14.7]} 23. Rxb5 {[%clk 0:01:39.4]}
23... Rxb5 {[%clk 0:02:13.7]} 24. Bxb5 {[%clk 0:01:40.3]} 24... Ra1 {[%clk
0:02:13.9]} 25. Rxa1 {[%clk 0:01:39]} 25... Bxa1 {[%clk 0:02:14.8]} 26. Kf1
{[%clk 0:01:39]} 26... Kf8 {[%clk 0:02:14.7]} 27. Bc6 {[%clk 0:01:38.6]} 27...
d4 {[%clk 0:02:14.7]} 28. exd4 {[%clk 0:01:39.2]} 28... Bxd4 {[%clk 0:02:14.2]}
29. Be4 {[%clk 0:01:38.2]} 29... g6 {[%clk 0:02:14.4]} 30. Ke2 {[%clk
0:01:38.2]} 30... Kg7 {[%clk 0:02:14.7]} 1/2-1/2

[Event "Early-Titled-Tuesday-Blitz-February-06-2024"]
[Site "Chess.com"]
[Date "2024.02.06"]
[Round "6"]
[White "Goryachkina"]
[Black "MasterKroket"]
[Result "1/2-1/2"]
[WhiteElo "2671"]
[BlackElo "2499"]
[TimeControl "180+1"]
[EndTime "9:04:03 PST"]
[Termination "Game drawn by repetition"]

1. e4 {[%clk 0:02:59.4]} 1... e5 {[%clk 0:03:00.2]} 2. Nf3 {[%clk 0:02:59.4]}
2... Nc6 {[%clk 0:03:00.4]} 3. d4 {[%clk 0:02:59.6]} 3... exd4 {[%clk
0:03:00.5]} 4. Nxd4 {[%clk 0:03:00.5]} 4... Bc5 {[%clk 0:03:00.6]} 5. Be3 {[%clk
0:02:59.6]} 5... Qf6 {[%clk 0:03:00.7]} 6. c3 {[%clk 0:02:59.9]} 6... Nge7
{[%clk 0:03:00.5]} 7. Bc4 {[%clk 0:02:58.7]} 7... Ne5 {[%clk 0:02:57.6]} 8. Be2
{[%clk 0:02:57.9]} 8... d6 {[%clk 0:02:56.2]} 9. O-O {[%clk 0:02:56.5]} 9... Qg6
{[%clk 0:02:54.8]} 10. Kh1 {[%clk 0:02:53.6]} 10... Ng4 {[%clk 0:02:19.9]} 11.
Bxg4 {[%clk 0:02:43.9]} 11... Bxg4 {[%clk 0:02:19.4]} 12. f3 {[%clk 0:02:43.7]}
12... Bd7 {[%clk 0:02:19.6]} 13. Nd2 {[%clk 0:02:38.2]} 13... O-O {[%clk
0:02:18.4]} 14. b4 {[%clk 0:02:36.6]} 14... Bb6 {[%clk 0:02:18.4]} 15. a4 {[%clk
0:02:36.4]} 15... c6 {[%clk 0:02:11.2]} 16. a5 {[%clk 0:02:27.8]} 16... Bc7
{[%clk 0:02:10.3]} 17. Bf4 {[%clk 0:02:22.4]} 17... f5 {[%clk 0:02:04.4]} 18.
exf5 {[%clk 0:02:20.4]} 18... Nxf5 {[%clk 0:02:04.3]} 19. Nxf5 {[%clk
0:02:20.6]} 19... Bxf5 {[%clk 0:02:04.1]} 20. Bg3 {[%clk 0:02:20]} 20... Rae8
{[%clk 0:02:01.1]} 21. Re1 {[%clk 0:02:17.1]} 21... Bc2 {[%clk 0:01:45.7]} 22.
Qc1 {[%clk 0:02:16.3]} 22... h6 {[%clk 0:01:40.6]} 23. Nc4 {[%clk 0:02:06.2]}
23... Bb3 {[%clk 0:01:33.7]} 24. Nd2 {[%clk 0:02:00.5]} 24... Bc2 {[%clk
0:01:29.1]} 25. Nc4 {[%clk 0:01:57.4]} 25... Bd3 {[%clk 0:01:26.3]} 26. Nd2
{[%clk 0:01:55.8]} 26... Bc2 {[%clk 0:01:26.5]} 1/2-1/2

[Event "Early-Titled-Tuesday-Blitz-February-06-2024"]
[Site "Chess.com"]
[Date "2024.02.06"]
[Round "6"]
[White "emeli_chess"]
[Black "LuisFSiles"]
[Result "0-1"]
[WhiteElo "2410"]
[BlackElo "2253"]
[TimeControl "180+1"]
[EndTime "9:04:34 PST"]
[Termination "LuisFSiles won by resignation"]

1. d4 {[%clk 0:03:00.9]} 1... Nf6 {[%clk 0:02:59.6]} 2. c4 {[%clk 0:03:00.4]}
2... g6 {[%clk 0:03:00]} 3. Nc3 {[%clk 0:03:00.4]} 3... d5 {[%clk 0:03:00.6]} 4.
cxd5 {[%clk 0:03:00]} 4... Nxd5 {[%clk 0:03:01.5]} 5. e4 {[%clk 0:03:00]} 5...
Nxc3 {[%clk 0:03:01.8]} 6. bxc3 {[%clk 0:03:00.6]} 6... Bg7 {[%clk 0:03:02.4]}
7. Bc4 {[%clk 0:03:01.1]} 7... c5 {[%clk 0:03:02.4]} 8. Ne2 {[%clk 0:03:00.8]}
8... O-O {[%clk 0:03:02.2]} 9. Be3 {[%clk 0:03:00]} 9... Nc6 {[%clk 0:03:02.3]}
10. h4 {[%clk 0:03:00]} 10... cxd4 {[%clk 0:02:48.6]} 11. cxd4 {[%clk
0:02:59.7]} 11... e5 {[%clk 0:02:34.4]} 12. d5 {[%clk 0:02:56.5]} 12... Nd4
{[%clk 0:02:34.7]} 13. Nxd4 {[%clk 0:02:49.8]} 13... exd4 {[%clk 0:02:34.7]} 14.
Bxd4 {[%clk 0:02:39.6]} 14... Qa5+ {[%clk 0:02:34.5]} 15. Kf1 {[%clk 0:02:35.5]}
15... Qb4 {[%clk 0:02:25.4]} 16. Rc1 {[%clk 0:02:33.2]} 16... Bxd4 {[%clk
0:02:16.4]} 17. Qxd4 {[%clk 0:02:32.6]} 17... b5 {[%clk 0:02:15.9]} 18. h5
{[%clk 0:01:52.1]} 18... bxc4 {[%clk 0:02:15]} 19. h6 {[%clk 0:01:10.5]} 19...
f6 {[%clk 0:02:13.9]} 20. e5 {[%clk 0:01:10.5]} 20... Ba6 {[%clk 0:01:49.9]} 21.
e6 {[%clk 0:01:01.2]} 21... c3+ {[%clk 0:01:47.4]} 0-1

[Event "Early-Titled-Tuesday-Blitz-February-06-2024"]
[Site "Chess.com"]
[Date "2024.02.06"]
[Round "6"]
[White "NEPHILIM-SLAYER"]
[Black "Iball95"]
[Result "1-0"]
[WhiteElo "2758"]
[BlackElo "2909"]
[TimeControl "180+1"]
[EndTime "9:04:35 PST"]
[Termination "NEPHILIM-SLAYER won by resignation"]

1. Nf3 {[%clk 0:02:58.5]} 1... d5 {[%clk 0:02:59.2]} 2. c4 {[%clk 0:02:57.9]}
2... e6 {[%clk 0:02:59.4]} 3. e3 {[%clk 0:02:58.2]} 3... Nf6 {[%clk 0:02:59.4]}
4. Nc3 {[%clk 0:02:57.9]} 4... c5 {[%clk 0:02:58.3]} 5. d4 {[%clk 0:02:56.6]}
5... Nc6 {[%clk 0:02:56.8]} 6. cxd5 {[%clk 0:02:56.9]} 6... exd5 {[%clk
0:02:57.7]} 7. Bb5 {[%clk 0:02:57]} 7... cxd4 {[%clk 0:02:57.5]} 8. Nxd4 {[%clk
0:02:57.9]} 8... Bd7 {[%clk 0:02:58]} 9. O-O {[%clk 0:02:58.3]} 9... Bd6 {[%clk
0:02:58.3]} 10. Nf3 {[%clk 0:02:58.4]} 10... Be6 {[%clk 0:02:58.6]} 11. b3
{[%clk 0:02:57.1]} 11... O-O {[%clk 0:02:58.9]} 12. Bb2 {[%clk 0:02:57.5]} 12...
Rc8 {[%clk 0:02:55.9]} 13. Rc1 {[%clk 0:02:55.5]} 13... Qe7 {[%clk 0:02:55.3]}
14. Nd4 {[%clk 0:02:41.2]} 14... Bg4 {[%clk 0:02:47.9]} 15. Nxd5 {[%clk
0:02:34.2]} 15... Bxh2+ {[%clk 0:02:17.9]} 16. Kh1 {[%clk 0:02:34.3]} 16... Nxd5
{[%clk 0:02:11.6]} 17. Qxg4 {[%clk 0:02:33.1]} 17... Nf6 {[%clk 0:02:07.7]} 18.
Nxc6 {[%clk 0:02:25.5]} 18... bxc6 {[%clk 0:02:08.6]} 19. Bxf6 {[%clk
0:02:23.1]} 19... Qxf6 {[%clk 0:02:09.5]} 20. Ba6 {[%clk 0:02:08.1]} 20... h5
{[%clk 0:01:11.9]} 21. Qh3 {[%clk 0:01:58.8]} 21... Rce8 {[%clk 0:01:10.6]} 22.
Qxh2 {[%clk 0:01:55.6]} 22... Re4 {[%clk 0:01:11]} 23. Rc4 {[%clk 0:01:51.2]}
23... Rfe8 {[%clk 0:01:10.8]} 24. Rxe4 {[%clk 0:01:47.9]} 24... Rxe4 {[%clk
0:01:11.7]} 25. Qb8+ {[%clk 0:01:48.1]} 25... Qd8 {[%clk 0:01:09.8]} 26. Qxd8+
{[%clk 0:01:47.5]} 1-0

[Event "Early-Titled-Tuesday-Blitz-February-06-2024"]
[Site "Chess.com"]
[Date "2024.02.06"]
[Round "6"]
[White "ural58"]
[Black "disciplinedbrat"]
[Result "1-0"]
[WhiteElo "2486"]
[BlackElo "2290"]
[TimeControl "180+1"]
[EndTime "9:04:35 PST"]
[Termination "ural58 won by resignation"]

1. e4 {[%clk 0:02:50.7]} 1... Nf6 {[%clk 0:02:49.2]} 2. e5 {[%clk 0:02:49.9]}
2... Nd5 {[%clk 0:02:49.1]} 3. d4 {[%clk 0:02:50]} 3... d6 {[%clk 0:02:48.7]} 4.
c4 {[%clk 0:02:49.9]} 4... Nb6 {[%clk 0:02:49.1]} 5. f4 {[%clk 0:02:50.1]} 5...
g6 {[%clk 0:02:40.9]} 6. Nc3 {[%clk 0:02:43.5]} 6... Bg7 {[%clk 0:02:41]} 7. c5
{[%clk 0:02:42.6]} 7... N6d7 {[%clk 0:02:38.7]} 8. cxd6 {[%clk 0:02:39.1]} 8...
exd6 {[%clk 0:02:32.6]} 9. Nf3 {[%clk 0:02:38.5]} 9... O-O {[%clk 0:02:29.6]}
10. Bc4 {[%clk 0:02:38.2]} 10... dxe5 {[%clk 0:02:23.7]} 11. dxe5 {[%clk
0:02:37.6]} 11... Nb6 {[%clk 0:02:20.5]} 12. Qxd8 {[%clk 0:02:35.3]} 12... Rxd8
{[%clk 0:02:20]} 13. Bb3 {[%clk 0:02:35.7]} 13... Nc6 {[%clk 0:02:16.8]} 14. O-O
{[%clk 0:02:35.3]} 14... Bf5 {[%clk 0:02:09.6]} 15. Be3 {[%clk 0:02:30.5]} 15...
Rd3 {[%clk 0:02:00.3]} 16. Bf2 {[%clk 0:02:26.5]} 16... h6 {[%clk 0:01:57.6]}
17. Nb5 {[%clk 0:02:17.6]} 17... Rd7 {[%clk 0:01:39.1]} 18. Nbd4 {[%clk
0:02:08.4]} 18... Rad8 {[%clk 0:01:19.4]} 19. Nxf5 {[%clk 0:02:06.7]} 19... gxf5
{[%clk 0:01:18.8]} 20. e6 {[%clk 0:02:06.8]} 20... Rd3 {[%clk 0:01:04.6]} 21.
exf7+ {[%clk 0:02:06.3]} 21... Kh8 {[%clk 0:01:04.4]} 22. Rae1 {[%clk
0:02:00.4]} 22... Bxb2 {[%clk 0:00:56.1]} 23. Re8+ {[%clk 0:01:58.2]} 23... Kg7
{[%clk 0:00:55.3]} 24. f8=Q+ {[%clk 0:01:58.1]} 1-0